bitfinex-derivatives/quotes_BNBF0:USTF0_20250309
["timestamp","ask_amount","ask_price","bid_price","bid_amount"]
[1741552384326,0.81,561.1,560.79,0.29465239]
[1741552384527,0.81,561.1,560.8,0.35663338]
[1741552384727,0.81,561.1,560.81,0.29465239]
[1741552384928,0.81,561.1,560.82,0.35662066]
[1741552385127,0.81,561.1,560.83,0.29465239]
[1741552385327,0.81,561.1,560.84,0.35660794]
[1741552385526,0.81,561.1,560.85,0.29465239]
[1741552385727,0.81,561.1,560.86,0.35659522]
[1741552385928,0.81,561.1,560.87,0.29465239]
[1741552386129,0.81,561.1,560.88,0.35658251]
[1741552386427,0.81,561.1,560.89,0.29465239]
[1741552386624,0.81,561.1,560.88,0.35658251]
[1741552388229,0.81,561.1,560.89,0.2949253]
[1741552388429,0.81,561.1,560.9,0.35656979]
[1741552389330,0.81,561.1,560.91,0.29489235]
[1741552389531,0.81,561.1,560.92,0.35655708]
[1741552389834,0.81,561.1,560.93,0.29489235]
[1741552390026,0.81,561.1,560.94,0.35654437]
[1741552394540,0.81,561.1,560.95,0.29483968]
[1741552395434,0.81,561.1,560.96,0.29489719]
[1741552395639,0.81,561.1,560.95,0.29489719]
[1741552395937,0.81,561.1,560.94,0.35654437]
[1741552395938,0.81,561.1,560.96,0.29489719]
[1741552396138,0.81,561.1,560.97,0.29489719]
[1741552396441,0.81,561.1,560.98,0.29489719]
[1741552396640,0.81,561.1,560.95,0.29489719]
[1741552396841,0.81,561.1,560.96,0.29489719]
[1741552397048,0.81,561.1,560.95,0.29489719]
[1741552397240,0.81,561.1,560.96,0.29489719]
[1741552397441,0.81,561.1,560.95,0.29489719]
[1741552397641,0.81,561.1,560.96,0.29489719]
[1741552397841,0.81,561.1,560.95,0.29489719]
[1741552398843,0.81,561.1,560.94,0.35654437]
[1741552399146,0.81,561.1,560.95,0.29491738]
[1741552399345,0.81,561.1,560.94,0.35654437]
[1741552399644,0.31023647,561.09,560.94,0.35654437]
[1741552401145,0.81,561.1,560.94,0.35654437]
[1741552401944,1.3983626,561.38,560.94,0.35654437]
[1741552402144,0.287,561.44,560.94,0.35654437]
[1741552402145,1.3983626,561.37,560.94,0.35654437]
[1741552402339,0.3102254,561.09,560.94,0.35654437]
[1741552402646,1.3983626,561.37,560.94,0.35654437]
[1741552402846,1.3983626,561.36,560.94,0.35654437]
[1741552403446,1.3983626,561.35,560.94,0.35654437]
[1741552403847,1.70857418,561.34,560.94,0.35654437]
[1741552404240,0.31021158,561.34,560.94,0.35654437]
[1741552404645,1.40158936,561.33,560.94,0.35654437]
[1741552405346,1.38721158,561.34,560.94,0.35654437]
[1741552405548,1.4014585,561.32,560.94,0.35654437]
[1741552405941,1.38721158,561.34,560.94,0.35654437]
[1741552405942,1.4014585,561.31,560.94,0.35654437]
[1741552406443,1.4014585,561.3,560.94,0.35654437]
[1741552406947,1.4014585,561.29,560.94,0.35654437]
[1741552407146,1.6884585,561.29,560.94,0.35654437]
[1741552407349,0.31021158,561.28,560.94,0.35654437]
[1741552407550,1.71167008,561.28,560.94,0.35654437]
[1741552407952,0.31021158,561.28,560.94,0.35654437]
[1741552408551,1.40107383,561.27,560.94,0.35654437]
[1741552409255,0.31021158,561.28,560.94,0.35654437]
[1741552410149,0.287,561.29,560.94,0.35654437]
[1741552410354,1.71101277,561.27,560.94,0.35654437]
[1741552410754,0.31020052,561.27,560.94,0.35654437]
[1741552412055,1.40057609,561.26,560.94,0.35654437]
[1741552412455,1.40057609,561.25,560.94,0.35654437]
[1741552412955,0.31020052,561.27,560.94,0.35654437]
[1741552413153,0.287,561.29,560.94,0.35654437]
[1741552413555,1.40028209,561.28,560.94,0.35654437]
[1741552413951,0.287,561.29,560.94,0.35654437]
[1741552414550,0.31021019,561.28,560.94,0.35654437]
[1741552414755,1.71037155,561.28,560.94,0.35654437]
[1741552415150,1.40016136,561.27,560.94,0.35654437]
[1741552415755,0.31021019,561.28,560.94,0.35654437]
[1741552416154,0.287,561.29,560.94,0.35654437]
[1741552416554,0.31020881,561.27,560.94,0.35654437]
[1741552421561,1.39978194,561.26,560.94,0.35654437]
[1741552422061,1.39978194,561.25,560.94,0.35654437]
[1741552422461,1.39978194,561.24,560.94,0.35654437]
[1741552423060,1.39978194,561.23,560.94,0.35654437]
[1741552423558,1.70998937,561.23,560.94,0.35654437]
[1741552423758,1.39978194,561.22,560.94,0.35654437]
[1741552424356,1.39978194,561.21,560.94,0.35654437]
[1741552425163,1.39978194,561.2,560.94,0.35654437]
[1741552425560,0.31020743,561.23,560.94,0.35654437]
[1741552425561,1.39978194,561.19,560.94,0.35654437]
[1741552426158,1.39978194,561.18,560.94,0.35654437]
[1741552426656,1.39978194,561.17,560.94,0.35654437]
[1741552427261,1.39978194,561.16,560.94,0.35654437]
[1741552427658,1.39978194,561.15,560.94,0.35654437]
[1741552428264,2.86422711,561.22,560.94,0.35654437]
[1741552428465,0.31026828,561.14,560.94,0.35654437]
[1741552428665,2.86418613,561.28,560.94,0.35654437]
[1741552428965,6.51583335,561.27,560.94,0.35654437]
[1741552429161,2.86418613,561.26,560.94,0.35654437]
[1741552429365,2.86418613,561.25,560.94,0.35654437]
[1741552429668,3.65164722,561.25,560.94,0.35654437]
[1741552430163,1.4044797,561.24,560.94,0.35654437]
[1741552430768,1.4044797,561.23,560.94,0.35654437]
[1741552431061,1.4044797,561.22,560.94,0.35654437]
[1741552431762,1.4044797,561.21,560.94,0.35654437]
[1741552432169,1.4044797,561.21,560.95,0.2955613]
[1741552432469,0.31018946,561.2,560.96,0.35653166]
[1741552432666,0.31018946,561.2,560.97,0.2955613]
[1741552432869,0.31018946,561.2,560.98,0.35651894]
[1741552433168,0.31018946,561.2,560.99,0.2955613]
[1741552433569,0.31018946,561.2,560.98,0.35651894]
[1741552433768,0.31018946,561.2,560.99,0.29557234]
[1741552434169,0.854,561.29,560.99,0.29557234]
[1741552435264,0.854,561.29,560.98,0.35651894]
[1741552435569,0.854,561.29,560.99,0.29560495]
[1741552435570,0.31009133,561.28,560.99,0.29560495]
[1741552435964,1.40714373,561.27,560.99,0.29560495]
[1741552436770,1.40714373,561.26,560.99,0.29560495]
[1741552437066,0.31009133,561.28,560.98,0.35651894]
[1741552437273,0.854,561.29,560.99,0.29569638]
[1741552437773,1.40695843,561.28,560.99,0.29569638]
[1741552438476,1.71705115,561.27,560.99,0.29569638]
[1741552438873,0.31009272,561.27,560.99,0.29569638]
[1741552440272,0.854,561.29,560.99,0.29569638]
[1741552440473,0.854,561.29,561.0,0.35650623]
[1741552440676,0.854,561.29,561.01,0.29569638]
[1741552440879,0.854,561.29,561.02,0.35649352]
[1741552441080,0.854,561.29,561.03,0.29569638]
[1741552441475,0.31007614,561.28,561.03,0.29569638]
[1741552443280,0.854,561.29,561.03,0.29569638]
[1741552443582,1.40747062,561.28,561.03,0.29569638]
[1741552443879,0.854,561.29,561.03,0.29569638]
[1741552444277,0.31008857,561.28,561.03,0.29569638]
[1741552445490,1.4073962,561.27,561.03,0.29569638]
[1741552446197,0.854,561.29,561.03,0.29569638]
[1741552446391,1.40719249,561.28,561.03,0.29569638]
[1741552446991,0.854,561.29,561.03,0.29569638]
[1741552447291,2.86569049,561.28,561.02,0.35649352]
[1741552447486,0.3101162,561.28,561.02,0.35649352]
[1741552448286,3.18854347,561.27,561.02,0.35649352]
[1741552448590,1.4071226,561.27,561.02,0.35649352]
[1741552448791,4.27286682,561.26,561.02,0.35649352]
[1741552449092,2.86569821,561.25,561.02,0.35649352]
[1741552449292,1.4071226,561.26,561.02,0.35649352]
[1741552449691,1.4071226,561.25,561.02,0.35649352]
[1741552450088,1.71728994,561.25,561.02,0.35649352]
[1741552450287,1.4071226,561.24,561.02,0.35649352]
[1741552450689,0.31016734,561.25,561.02,0.35649352]
[1741552452306,0.854,561.29,561.02,0.35649352]
[1741552453089,0.31021019,561.28,561.02,0.35649352]
[1741552458298,0.287,561.33,561.02,0.35649352]
[1741552458895,1.40675733,561.32,561.02,0.35649352]
[1741552459595,1.71697305,561.31,561.02,0.35649352]
[1741552460195,0.31021572,561.31,561.02,0.35649352]
[1741552461195,0.287,561.33,561.02,0.35649352]
[1741552462199,1.40653991,561.32,561.02,0.35649352]
[1741552462400,1.71673904,561.32,561.02,0.35649352]
[1741552462997,0.31019913,561.32,561.02,0.35649352]
[1741552464303,0.287,561.33,561.02,0.35649352]
[1741552464705,0.896,561.37,561.02,0.35649352]
[1741552464901,1.40555228,561.32,561.02,0.35649352]
[1741552465303,1.71571547,561.31,561.02,0.35649352]
[1741552465605,1.40555228,561.3,561.02,0.35649352]
[1741552466303,0.31016319,561.31,561.02,0.35649352]
[1741552467198,0.896,561.37,561.02,0.35649352]
[1741552467797,1.40562933,561.36,561.02,0.35649352]
[1741552468304,1.183,561.37,561.02,0.35649352]
[1741552468506,0.31012173,561.35,561.02,0.35649352]
[1741552469005,0.31012173,561.35,561.03,0.29560359]
[1741552470104,0.287,561.37,561.03,0.29560359]
[1741552470401,0.287,561.37,561.04,0.35648082]
[1741552470607,0.287,561.37,561.05,0.29560359]
[1741552470907,0.31000018,561.36,561.06,0.35646811]
[1741552471303,0.31000018,561.36,561.07,0.29547973]
[1741552471505,0.31000018,561.36,561.08,0.3564554]
[1741552471712,0.31000018,561.36,561.09,0.29547973]
[1741552471904,0.31000018,561.36,561.09,0.65192878]
[1741552472211,0.31000018,561.36,561.1,0.29547973]
[1741552473412,0.287,561.37,561.1,0.29547973]
[1741552473807,0.31002365,561.35,561.1,0.29547973]
[1741552476305,0.287,561.37,561.1,0.29547973]
[1741552476511,0.287,561.37,561.09,0.35644905]
[1741552476710,0.31002365,561.34,561.1,0.29545578]
[1741552479212,0.287,561.37,561.1,0.29545578]
[1741552480514,0.31002365,561.36,561.1,0.29545578]
[1741552480814,0.31002365,561.36,561.11,0.35643634]
[1741552481014,0.31002365,561.36,561.12,0.29545578]
[1741552481212,0.31002365,561.36,561.13,0.35642364]
[1741552482212,1.198,561.45,561.13,0.35642364]
[1741552482515,0.31005542,561.35,561.13,0.35642364]
[1741552482814,1.198,561.45,561.13,0.35642364]
[1741552483613,0.31006647,561.44,561.14,0.29544765]
[1741552483806,0.31006647,561.44,561.13,0.35642364]
[1741552483807,0.31006647,561.44,561.15,0.29548221]
[1741552484007,0.31006647,561.44,561.14,0.29548221]
[1741552484212,0.31006647,561.44,561.15,0.29548221]
[1741552484417,0.31006647,561.44,561.13,0.35642364]
[1741552487010,1.4050159,561.43,561.13,0.35642364]
[1741552487413,0.31006647,561.44,561.13,0.35642364]
[1741552488310,0.287,561.48,561.13,0.35642364]
[1741552489115,1.40578414,561.47,561.13,0.35642364]
[1741552489510,1.7158437,561.47,561.13,0.35642364]
[1741552489712,1.40578414,561.46,561.14,0.29563356]
[1741552490010,1.40578414,561.45,561.14,0.29563356]
[1741552491014,1.40578414,561.44,561.14,0.29563356]
[1741552491210,1.40578414,561.43,561.14,0.29563356]
[1741552491709,1.40578414,561.42,561.14,0.29563356]
[1741552492310,1.7158368,561.41,561.14,0.29563356]
[1741552492614,1.7158368,561.41,561.13,0.35642364]
[1741552492809,1.40578414,561.4,561.13,0.35642364]
[1741552493011,1.40578414,561.39,561.13,0.35642364]
[1741552493714,0.31005266,561.41,561.13,0.35642364]
[1741552493715,1.40578414,561.38,561.13,0.35642364]
[1741552493914,1.40578414,561.37,561.13,0.35642364]
[1741552494515,1.40578414,561.36,561.13,0.35642364]
[1741552495114,1.40578414,561.35,561.13,0.35642364]
[1741552495310,1.71589896,561.35,561.13,0.35642364]
[1741552495712,0.31011482,561.35,561.13,0.35642364]
[1741552496317,0.31011482,561.35,561.14,0.2956736]
[1741552496516,1.40710301,561.34,561.14,0.2956736]
[1741552497217,1.40710301,561.33,561.14,0.2956736]
[1741552497617,4.58483981,561.46,561.14,0.2956736]
[1741552497816,7.45040816,561.45,561.14,0.2956736]
[1741552498017,7.45040816,561.44,561.14,0.2956736]
[1741552498320,6.52486505,561.43,561.13,0.35642364]
[1741552498618,6.52486505,561.42,561.13,0.35642364]
[1741552498817,2.86556835,561.41,561.13,0.35642364]
[1741552499017,2.86556835,561.4,561.13,0.35642364]
[1741552499213,2.86556835,561.39,561.13,0.35642364]
[1741552499420,2.86575696,561.38,561.13,0.35642364]
[1741552499721,1.40742181,561.38,561.13,0.35642364]
[1741552499922,5.71610584,561.37,561.13,0.35642364]
[1741552500219,11.11128808,561.36,561.13,0.35642364]
[1741552500420,2.86609063,561.35,561.13,0.35642364]
[1741552500620,2.86609063,561.34,561.13,0.35642364]
[1741552500920,3.65970544,561.36,561.13,0.35642364]
[1741552500921,2.86609063,561.33,561.13,0.35642364]
[1741552501114,6.52579607,561.32,560.79,1.32985219]
[1741552501316,2.86609063,561.31,560.8,0.35663338]
[1741552501518,2.86609063,561.3,560.8,0.65233597]
[1741552501714,5.71673603,561.29,560.81,0.29570259]
[1741552501919,2.86609063,561.28,560.81,0.29570259]
[1741552502120,2.86609063,561.27,560.81,0.29570259]
[1741552502320,2.86609063,561.26,560.81,0.29570259]
[1741552502616,1.78139236,561.25,560.81,0.29570259]
[1741552502821,3.65970544,561.27,560.81,0.29570259]
[1741552503016,0.31013831,561.35,560.81,0.29570259]
[1741552503017,3.65970544,561.24,560.81,0.29570259]
[1741552503622,4.27358442,561.23,560.8,0.35663338]
[1741552503922,2.86616261,561.22,560.8,0.35663338]
[1741552504114,6.52519963,561.21,560.8,0.35663338]
[1741552504315,2.86616261,561.2,560.8,0.35663338]
[1741552504523,2.86616261,561.19,560.8,0.35663338]
[1741552504723,2.86616261,561.18,560.8,0.35663338]
[1741552505024,2.86616261,561.17,560.8,0.35663338]
[1741552505225,3.65903702,561.17,560.8,0.35663338]
[1741552505621,1.40742181,561.16,560.8,0.35663338]
[1741552506321,8.85658055,561.15,560.8,0.35663338]
[1741552506526,5.71636261,561.14,560.8,0.35663338]
[1741552506827,6.52103395,561.13,560.8,0.35663338]
[1741552507028,2.86501755,561.12,560.8,0.35663338]
[1741552507228,1.78209066,561.11,560.8,0.35663338]
[1741552507429,1.40742181,561.13,560.8,0.35663338]
[1741552507729,1.40742181,561.1,560.8,0.35663338]
[1741552508124,1.40742181,561.09,560.8,0.35663338]
[1741552508519,1.40742181,561.08,560.8,0.35663338]
[1741552509322,1.40742181,561.07,560.8,0.35663338]
[1741552509729,1.06413503,561.37,560.8,0.35663338]
[1741552509928,1.06413503,561.35,560.8,0.35663338]
[1741552510125,9.04485333,561.34,560.8,0.35663338]
[1741552510430,7.9807183,561.33,560.8,0.35663338]
[1741552510635,0.31028211,561.34,560.8,0.35663338]
[1741552510636,7.9807183,561.32,560.8,0.35663338]
[1741552510826,3.34672578,561.31,560.8,0.35663338]
[1741552511032,7.98065688,561.3,560.8,0.35663338]
[1741552511233,7.98065688,561.29,560.8,0.35663338]
[1741552511427,7.98065688,561.28,560.8,0.35663338]
[1741552511631,7.44596138,561.27,560.8,0.35663338]
[1741552511931,11.09545453,561.26,560.8,0.35663338]
[1741552512132,7.44596138,561.25,560.8,0.35663338]
[1741552512332,7.44596138,561.24,560.8,0.35663338]
[1741552512526,7.44596138,561.23,560.8,0.35663338]
[1741552512729,7.44596138,561.22,560.8,0.35663338]
[1741552512934,2.86204792,561.21,560.8,0.35663338]
[1741552513131,2.86204792,561.2,560.8,0.35663338]
[1741552513326,2.86204792,561.19,560.8,0.35663338]
[1741552513631,2.86204792,561.18,560.8,0.35663338]
[1741552513830,2.86204792,561.17,560.8,0.35663338]
[1741552514031,1.78228119,561.16,560.8,0.35663338]
[1741552514231,3.64949315,561.16,560.8,0.35663338]
[1741552514526,1.07911157,561.15,560.8,0.35663338]
[1741552514733,2.86144172,561.14,560.8,0.35663338]
[1741552514927,3.64949315,561.15,560.8,0.35663338]
[1741552515125,2.86144132,561.14,560.8,0.35663338]
[1741552515330,3.64949315,561.14,560.8,0.35663338]
[1741552515632,3.95982368,561.14,560.8,0.35663338]
[1741552515928,1.40365121,561.13,560.8,0.35663338]
[1741552516635,1.40365121,561.12,560.8,0.35663338]
[1741552517028,1.40365121,561.11,560.8,0.35663338]
[1741552518135,1.40365121,561.1,560.8,0.35663338]
[1741552518330,1.012,561.14,560.8,0.35663338]
[1741552518535,0.31032915,561.1,560.8,0.35663338]
[1741552519136,0.31032915,561.1,560.81,0.29578986]
[1741552519439,0.31032915,561.1,560.82,0.29558051]
[1741552519634,0.31032915,561.1,560.81,0.29558051]
[1741552521133,0.31032915,561.1,560.82,0.35662066]
[1741552521328,1.012,561.14,560.83,0.29558051]
[1741552521742,1.012,561.14,560.84,0.35660794]
[1741552521940,1.012,561.14,560.85,0.29558051]
[1741552522236,1.012,561.14,560.86,0.35659522]
[1741552522538,0.31014246,561.13,560.87,0.29558051]
[1741552522932,0.31014246,561.13,560.88,0.35658251]
[1741552523128,0.31014246,561.13,560.89,0.29558051]
[1741552523335,0.31014246,561.13,560.9,0.35656979]
[1741552523537,0.31014246,561.13,560.91,0.29558051]
[1741552523931,0.31014246,561.13,560.92,0.35655708]
[1741552524133,1.012,561.14,560.93,0.29558051]
[1741552525338,1.012,561.14,560.94,0.35654437]
[1741552525535,1.012,561.14,560.95,0.29558051]
[1741552525837,1.012,561.14,560.96,0.35653166]
[1741552526037,1.012,561.14,560.97,0.29558051]
[1741552526239,1.012,561.14,560.98,0.35651894]
[1741552526437,1.012,561.14,560.99,0.29558051]
[1741552526638,1.012,561.14,561.0,0.35650623]
[1741552526837,1.012,561.14,561.01,0.29558051]
[1741552527037,1.012,561.14,561.02,0.35649352]
[1741552527237,1.012,561.14,561.03,0.29558051]
[1741552527839,1.012,561.14,561.02,0.35649352]
[1741552528541,1.32219913,561.14,561.02,0.35649352]
[1741552530238,1.012,561.14,561.02,0.35649352]
[1741552531443,0.31022402,561.13,561.02,0.35649352]
[1741552533147,1.012,561.14,561.02,0.35649352]
[1741552534442,0.31022817,561.13,561.02,0.35649352]
[1741552536152,1.012,561.14,561.02,0.35649352]
[1741552537348,1.32221019,561.14,561.02,0.35649352]
[1741552538443,1.012,561.14,561.02,0.35649352]
[1741552542557,0.31029179,561.13,561.02,0.35649352]
[1741552545258,1.012,561.14,561.02,0.35649352]
[1741552545451,0.31031254,561.12,561.02,0.35649352]
[1741552551258,1.40251851,561.31,561.02,0.35649352]
[1741552551456,1.40251851,561.3,561.02,0.35649352]
[1741552552156,1.40251851,561.29,561.02,0.35649352]
[1741552552754,1.71271488,561.28,561.02,0.35649352]
[1741552553162,0.31019637,561.28,561.02,0.35649352]
[1741552554255,2.24478668,561.34,561.02,0.35649352]
[1741552554457,0.923,561.36,561.02,0.35649352]
[1741552554762,1.78155908,561.35,561.02,0.35649352]
[1741552554962,1.40315762,561.35,561.02,0.35649352]
[1741552555158,1.40315762,561.34,561.02,0.35649352]
[1741552555661,1.7133139,561.34,561.02,0.35649352]
[1741552556258,0.31015628,561.34,561.02,0.35649352]
[1741552557262,0.923,561.36,561.02,0.35649352]
[1741552557461,0.923,561.36,561.03,0.29507371]
[1741552558463,0.31008443,561.35,561.03,0.29507371]
[1741552563260,0.923,561.36,561.03,0.29507371]
[1741552563866,0.923,561.36,561.04,0.35648082]
[1741552564062,0.923,561.36,561.05,0.29507371]
[1741552564269,0.923,561.36,561.06,0.35646811]
[1741552564468,0.31004437,561.35,561.07,0.29507371]
[1741552565165,0.31004437,561.35,561.08,0.3564554]
[1741552565469,0.31004437,561.35,561.09,0.29507371]
[1741552565670,0.31004437,561.35,561.09,0.65152276]
[1741552565870,0.31004437,561.35,561.1,0.29507371]
[1741552566267,0.923,561.36,561.09,0.35644905]
[1741552566465,0.923,561.36,561.1,0.29502469]
[1741552567465,0.923,561.36,561.09,0.35644905]
[1741552567466,0.31003608,561.35,561.09,0.35644905]
[1741552567670,0.31003608,561.35,561.1,0.294973]
[1741552569269,0.923,561.36,561.09,0.35644905]
[1741552569469,0.923,561.36,561.1,0.29490391]
[1741552569668,0.923,561.36,561.11,0.35643634]
[1741552570470,0.31005818,561.35,561.11,0.35643634]
[1741552572175,0.287,561.45,561.11,0.35643634]
[1741552573574,0.31008305,561.44,561.11,0.35643634]
[1741552575375,1.029,561.45,561.11,0.35643634]
[1741552576470,0.31009962,561.44,561.11,0.35643634]
[1741552578271,1.029,561.45,561.11,0.35643634]
[1741552579379,0.3101093,561.44,561.11,0.35643634]
[1741552581182,0.742,561.45,561.11,0.35643634]
[1741552582377,0.31009686,561.44,561.11,0.35643634]
[1741552583781,0.31009686,561.44,561.12,0.29520106]
[1741552583977,0.742,561.45,561.12,0.29520106]
[1741552584583,1.40506716,561.44,561.12,0.29520106]
[1741552584884,1.40506716,561.43,561.12,0.29520106]
[1741552585382,0.742,561.45,561.12,0.29520106]
[1741552585781,4.26891301,561.44,561.12,0.29520106]
[1741552585983,2.86382784,561.43,561.12,0.29520106]
[1741552586281,1.40508517,561.44,561.12,0.29520106]
[1741552586481,3.65327432,561.42,561.11,0.35643634]
[1741552586784,2.86387352,561.41,561.11,0.35643634]
[1741552586983,3.65327432,561.42,561.11,0.35643634]
[1741552587184,2.86397672,561.41,561.11,0.35643634]
[1741552587480,1.78117301,561.4,561.11,0.35643634]
[1741552587685,0.742,561.45,561.11,0.35643634]
[1741552587686,1.40508517,561.39,561.11,0.35643634]
[1741552588484,0.742,561.45,561.11,0.35643634]
[1741552588485,1.40508517,561.38,561.11,0.35643634]
[1741552588885,0.31013693,561.37,561.11,0.35643634]
[1741552589086,1.78128673,561.36,561.11,0.35643634]
[1741552589284,2.86421135,561.35,561.11,0.35643634]
[1741552589480,2.86421135,561.34,561.11,0.35643634]
[1741552589683,6.51787717,561.33,560.7,1.32985219]
[1741552589980,2.86421135,561.32,560.71,0.65228484]
[1741552590180,2.86428123,561.31,560.72,0.65221842]
[1741552590381,2.86428123,561.3,560.73,0.65221206]
[1741552590582,3.65366582,561.31,560.73,0.65221206]
[1741552590583,2.86428123,561.29,560.74,0.35667154]
[1741552590778,5.43495255,561.28,560.74,0.35667154]
[1741552590980,3.65366582,561.28,560.74,0.6522057]
[1741552591288,1.40508517,561.27,560.75,0.29553416]
[1741552591486,1.40508517,561.27,560.76,0.35665882]
[1741552591783,1.40508517,561.26,560.76,0.35665882]
[1741552591986,1.40508517,561.26,560.77,0.29553416]
[1741552592186,1.40508517,561.26,560.78,0.3566461]
[1741552592385,1.40508517,561.25,560.79,0.29553416]
[1741552592787,1.40508517,561.24,560.79,0.29553416]
[1741552592985,1.40508517,561.23,560.79,0.29553416]
[1741552593587,1.40508517,561.22,560.79,0.29553416]
[1741552593787,1.40508517,561.21,560.79,0.29553416]
[1741552594387,7.98241604,561.4,560.79,0.29553416]
[1741552594583,0.31019637,561.2,560.79,0.29553416]
[1741552594787,7.44789543,561.38,560.79,0.29553416]
[1741552594988,1.128,561.2,560.79,0.29553416]
[1741552596484,0.31019775,561.19,560.79,0.29553416]
[1741552598890,0.31019775,561.19,560.78,0.3566461]
[1741552599088,0.31019775,561.19,560.79,0.29562203]
[1741552599292,1.128,561.2,560.79,0.29562203]
[1741552599591,0.31019775,561.18,560.79,0.29562203]
[1741552599990,0.31019775,561.18,560.78,0.3566461]
[1741552602291,1.128,561.2,560.78,0.3566461]
[1741552602693,0.31023093,561.17,560.78,0.3566461]
[1741552605294,1.128,561.2,560.78,0.3566461]
[1741552606589,0.31030286,561.19,560.78,0.3566461]
[1741552608299,1.128,561.2,560.78,0.3566461]
[1741552609495,0.31028626,561.19,560.78,0.3566461]
[1741552611296,1.128,561.2,560.78,0.3566461]
[1741552611594,0.31028349,561.18,560.78,0.3566461]
[1741552614195,1.128,561.2,560.78,0.3566461]
[1741552614698,0.31023785,561.17,560.78,0.3566461]
[1741552616501,0.287,561.16,560.78,0.3566461]
[1741552616699,0.287,561.16,560.79,0.29541444]
[1741552616898,0.287,561.16,560.8,0.35663338]
[1741552617197,0.287,561.16,560.81,0.29541444]
[1741552617598,0.287,561.16,560.82,0.35662066]
[1741552618003,0.287,561.16,560.83,0.29541444]
[1741552618200,0.287,561.16,560.84,0.35660794]
[1741552618404,0.287,561.16,560.85,0.29541444]
[1741552618808,0.287,561.16,560.86,0.29547725]
[1741552619007,0.287,561.16,560.85,0.29547725]
[1741552619202,0.287,561.16,560.86,0.29547725]
[1741552619411,0.287,561.16,560.85,0.29547725]
[1741552619609,0.287,561.16,560.86,0.29547725]
[1741552619807,0.287,561.16,560.84,0.35660794]
[1741552619808,0.287,561.16,560.85,0.29547725]
[1741552620603,0.287,561.16,560.86,0.35659522]
[1741552620808,0.287,561.16,560.87,0.29547725]
[1741552621007,0.287,561.16,560.88,0.35658251]
[1741552621203,0.287,561.16,560.89,0.29547725]
[1741552621403,0.287,561.16,560.9,0.35656979]
[1741552621609,0.31008995,561.15,560.91,0.29547725]
[1741552621808,0.31008995,561.15,560.92,0.35655708]
[1741552622010,0.31008995,561.15,560.93,0.29547725]
[1741552622214,0.31008995,561.15,560.94,0.35654437]
[1741552622411,0.31008995,561.15,560.95,0.29547725]
[1741552622713,0.31008995,561.15,560.96,0.35653166]
[1741552622912,0.31008995,561.15,560.97,0.29547725]
[1741552626216,0.287,561.16,560.97,0.29547725]
[1741552627525,0.59709548,561.16,560.97,0.65200255]
[1741552627822,0.287,561.16,560.98,0.65180105]
[1741552628019,0.287,561.16,560.99,0.29528211]
[1741552628220,0.287,561.16,561.0,0.35650623]
[1741552628522,0.287,561.16,561.01,0.29528211]
[1741552628719,0.287,561.16,561.02,0.35649352]
[1741552628918,0.287,561.16,561.03,0.29528211]
[1741552629119,0.287,561.16,561.03,0.35648717]
[1741552629317,0.287,561.16,561.04,0.295246]
[1741552630921,0.287,561.16,561.05,0.29529043]
[1741552631130,0.287,561.16,561.06,0.29529043]
[1741552631322,0.287,561.16,561.07,0.35646176]
[1741552631524,0.287,561.16,561.08,0.29529043]
[1741552632328,0.287,561.16,561.09,0.35644905]
[1741552632627,0.31004023,561.3,561.1,0.29529043]
[1741552633028,0.31004023,561.3,561.11,0.35643634]
[1741552633326,0.31004023,561.3,561.12,0.29529043]
[1741552634626,0.31004023,561.3,561.13,0.29531652]
[1741552634825,0.31004023,561.3,561.12,0.29531652]
[1741552635026,0.31004023,561.3,561.11,0.35643634]
[1741552635226,7.98031988,561.67,561.11,0.35643634]
[1741552635424,7.44604786,561.66,561.11,0.35643634]
[1741552635621,7.44604786,561.65,561.11,0.35643634]
[1741552635826,7.44604786,561.64,561.11,0.35643634]
[1741552636027,3.93970274,561.66,561.11,0.35643634]
[1741552636228,1.40527028,561.63,561.11,0.35643634]
[1741552636920,0.31000432,561.65,561.11,0.35643634]
[1741552637527,0.759,561.64,561.11,0.35643634]
[1741552638931,1.40415528,561.63,561.11,0.35643634]
[1741552639433,0.31001675,561.62,561.11,0.35643634]
[1741552639626,1.71417203,561.62,561.11,0.35643634]
[1741552640329,0.31001675,561.62,561.11,0.35643634]
[1741552641328,0.759,561.64,561.11,0.35643634]
[1741552641627,0.759,561.64,561.12,0.29488614]
[1741552642229,1.40334079,561.63,561.12,0.29488614]
[1741552642428,1.71331059,561.63,561.13,0.35642364]
[1741552642632,1.71331059,561.63,561.14,0.29488614]
[1741552642833,1.40334079,561.62,561.15,0.35641094]
[1741552643132,1.40334079,561.62,561.16,0.29488614]